[Event "Late-Titled-Tuesday-Blitz-April-23-2024"]
[Site "Chess.com"]
[Date "2024.04.23"]
[Round "2"]
[White "GMBenjaminBok"]
[Black "LikeWater"]
[Result "1-0"]
[WhiteElo "3043"]
[BlackElo "2657"]
[TimeControl "180+1"]
[EndTime "14:18:32 PDT"]
[Termination "GMBenjaminBok won by resignation"]

1. d4 {[%clk 0:03:00.9]} 1... Nf6 {[%clk 0:02:59.1]} 2. c4 {[%clk 0:03:01.1]}
2... g6 {[%clk 0:02:58.9]} 3. g3 {[%clk 0:03:01.3]} 3... Bg7 {[%clk 0:02:58.9]}
4. Bg2 {[%clk 0:03:02]} 4... O-O {[%clk 0:02:56.5]} 5. Nc3 {[%clk 0:03:01.7]}
5... c5 {[%clk 0:02:54.6]} 6. dxc5 {[%clk 0:02:58.5]} 6... Na6 {[%clk
0:02:53.2]} 7. Nf3 {[%clk 0:02:53.7]} 7... Nxc5 {[%clk 0:02:52.8]} 8. O-O {[%clk
0:02:53.5]} 8... b6 {[%clk 0:02:53]} 9. Nd4 {[%clk 0:02:52.4]} 9... Bb7 {[%clk
0:02:53.1]} 10. Bxb7 {[%clk 0:02:53]} 10... Nxb7 {[%clk 0:02:54]} 11. e4 {[%clk
0:02:50.7]} 11... d6 {[%clk 0:02:37]} 12. Be3 {[%clk 0:02:42.4]} 12... Qd7
{[%clk 0:02:36]} 13. f3 {[%clk 0:02:38.4]} 13... Rfc8 {[%clk 0:02:27.5]} 14. b3
{[%clk 0:02:35.7]} 14... h5 {[%clk 0:02:22.7]} 15. Rc1 {[%clk 0:02:32.3]} 15...
Nc5 {[%clk 0:02:19.9]} 16. Qe2 {[%clk 0:02:26.1]} 16... Qh3 {[%clk 0:01:57.4]}
17. Rfd1 {[%clk 0:02:18.7]} 17... Ncd7 {[%clk 0:01:57.1]} 18. Qg2 {[%clk
0:02:14.2]} 18... Qxg2+ {[%clk 0:01:55.7]} 19. Kxg2 {[%clk 0:02:15.1]} 19... Kf8
{[%clk 0:01:34]} 20. h3 {[%clk 0:02:13.5]} 20... a6 {[%clk 0:01:31.9]} 21. g4
{[%clk 0:02:11.3]} 21... e6 {[%clk 0:01:29.8]} 22. Nde2 {[%clk 0:01:56.8]} 22...
Ke7 {[%clk 0:01:23.2]} 23. Rd2 {[%clk 0:01:55.7]} 23... b5 {[%clk 0:01:03.5]}
24. cxb5 {[%clk 0:01:47.3]} 24... axb5 {[%clk 0:01:04.4]} 25. Nxb5 {[%clk
0:01:47.6]} 25... Rxc1 {[%clk 0:00:53.1]} 26. Nxc1 {[%clk 0:01:48.5]} 26... d5
{[%clk 0:00:54]} 27. g5 {[%clk 0:01:45.5]} 27... Ne8 {[%clk 0:00:53.4]} 28. exd5
{[%clk 0:01:44.3]} 28... Rc8 {[%clk 0:00:50.1]} 29. Ne2 {[%clk 0:01:36.5]} 29...
exd5 {[%clk 0:00:49.7]} 30. Nf4 {[%clk 0:01:32.1]} 30... Rc1 {[%clk 0:00:41.4]}
31. Nxd5+ {[%clk 0:01:22.2]} 31... Kf8 {[%clk 0:00:41.6]} 32. Nf4 {[%clk
0:01:04.6]} 32... Ne5 {[%clk 0:00:39.8]} 33. Re2 {[%clk 0:01:01.6]} 33... Rd1
{[%clk 0:00:31.1]} 34. Bc5+ {[%clk 0:00:57.4]} 34... Kg8 {[%clk 0:00:31.1]} 35.
Bd4 {[%clk 0:00:54.9]} 35... Nd6 {[%clk 0:00:28.8]} 36. Nxd6 {[%clk 0:00:40.1]}
36... Rxd4 {[%clk 0:00:28.4]} 37. Ne4 {[%clk 0:00:40.9]} 37... Rd1 {[%clk
0:00:17.3]} 38. a4 {[%clk 0:00:37.1]} 38... Rb1 {[%clk 0:00:17.1]} 39. Nd5
{[%clk 0:00:34.5]} 39... Rxb3 {[%clk 0:00:16.8]} 40. Nef6+ {[%clk 0:00:33.8]}
40... Bxf6 {[%clk 0:00:13.7]} 41. Nxf6+ {[%clk 0:00:34.7]} 41... Kg7 {[%clk
0:00:13.2]} 42. Rxe5 {[%clk 0:00:35.6]} 42... h4 {[%clk 0:00:13.8]} 43. Re4
{[%clk 0:00:31.4]} 43... Rb2+ {[%clk 0:00:09.5]} 44. Kf1 {[%clk 0:00:31.6]}
44... Rb3 {[%clk 0:00:10.4]} 45. Rf4 {[%clk 0:00:30.7]} 45... Ra3 {[%clk
0:00:09.5]} 46. Ke2 {[%clk 0:00:30.4]} 46... Ra2+ {[%clk 0:00:09.5]} 47. Kd1
{[%clk 0:00:30.4]} 1-0

[Event "Late-Titled-Tuesday-Blitz-April-23-2024"]
[Site "Chess.com"]
[Date "2024.04.23"]
[Round "2"]
[White "chucksterf10"]
[Black "topotun"]
[Result "0-1"]
[WhiteElo "2600"]
[BlackElo "2848"]
[TimeControl "180+1"]
[EndTime "14:18:32 PDT"]
[Termination "topotun won by resignation"]

1. Nf3 {[%clk 0:03:00]} 1... c5 {[%clk 0:02:59.8]} 2. b3 {[%clk 0:02:58.5]} 2...
Nc6 {[%clk 0:02:59.6]} 3. Bb2 {[%clk 0:02:59.4]} 3... d6 {[%clk 0:02:57.8]} 4.
d4 {[%clk 0:02:57.4]} 4... cxd4 {[%clk 0:02:57.6]} 5. Nxd4 {[%clk 0:02:58.3]}
5... Bd7 {[%clk 0:02:55.2]} 6. Nf3 {[%clk 0:02:54.6]} 6... Nf6 {[%clk
0:02:53.1]} 7. g3 {[%clk 0:02:53.3]} 7... g6 {[%clk 0:02:48]} 8. Bg2 {[%clk
0:02:37.7]} 8... Bg7 {[%clk 0:02:48]} 9. O-O {[%clk 0:02:38.2]} 9... O-O {[%clk
0:02:48.4]} 10. c4 {[%clk 0:02:38.6]} 10... a6 {[%clk 0:02:43.7]} 11. Re1 {[%clk
0:02:24.5]} 11... b5 {[%clk 0:02:33.9]} 12. cxb5 {[%clk 0:02:25.4]} 12... axb5
{[%clk 0:02:34.5]} 13. e4 {[%clk 0:02:26]} 13... Qb6 {[%clk 0:02:25.9]} 14. Qe2
{[%clk 0:02:19]} 14... Rfc8 {[%clk 0:02:10.5]} 15. e5 {[%clk 0:02:05.6]} 15...
Ng4 {[%clk 0:01:24.5]} 16. exd6 {[%clk 0:02:00.3]} 16... Nxf2 {[%clk 0:01:24.6]}
17. Bxg7 {[%clk 0:01:48.9]} 17... Ng4+ {[%clk 0:01:24.2]} 18. Kh1 {[%clk
0:01:40.7]} 18... Kxg7 {[%clk 0:01:24.4]} 19. h3 {[%clk 0:01:27.1]} 19... Nf6
{[%clk 0:01:24.2]} 20. dxe7 {[%clk 0:01:26.9]} 20... Re8 {[%clk 0:01:18.5]} 21.
Nc3 {[%clk 0:01:16.8]} 21... Nxe7 {[%clk 0:01:08.1]} 22. Qb2 {[%clk 0:01:09.3]}
22... Kg8 {[%clk 0:01:03.6]} 23. Ne5 {[%clk 0:01:02.1]} 23... Rad8 {[%clk
0:00:54]} 24. Rad1 {[%clk 0:00:56.8]} 24... Be6 {[%clk 0:00:43.6]} 25. Rxd8
{[%clk 0:00:38.6]} 25... Rxd8 {[%clk 0:00:44.5]} 26. Rf1 {[%clk 0:00:33.7]}
26... Nh5 {[%clk 0:00:41.4]} 27. Ne4 {[%clk 0:00:19.2]} 27... Nf5 {[%clk
0:00:41.4]} 28. Kh2 {[%clk 0:00:16.2]} 28... Ne3 {[%clk 0:00:36.7]} 29. Qf2
{[%clk 0:00:11.7]} 29... Nxf1+ {[%clk 0:00:25.9]} 30. Qxf1 {[%clk 0:00:12.6]}
30... Qc7 {[%clk 0:00:23.6]} 31. Ng4 {[%clk 0:00:09.7]} 31... f5 {[%clk
0:00:16.8]} 32. Ngf6+ {[%clk 0:00:05.3]} 32... Nxf6 {[%clk 0:00:16.6]} 33. Nxf6+
{[%clk 0:00:06.2]} 33... Kh8 {[%clk 0:00:17.1]} 34. Qa1 {[%clk 0:00:06.1]} 34...
Qg7 {[%clk 0:00:17.2]} 35. g4 {[%clk 0:00:06.4]} 35... fxg4 {[%clk 0:00:17.4]}
36. hxg4 {[%clk 0:00:07.3]} 36... Bxg4 {[%clk 0:00:16.9]} 37. Qe5 {[%clk
0:00:06.2]} 37... Bf5 {[%clk 0:00:16.3]} 38. Qc3 {[%clk 0:00:02.4]} 38... b4
{[%clk 0:00:14.9]} 39. Qe5 {[%clk 0:00:01.8]} 39... Rf8 {[%clk 0:00:15]} 40. Ng4
{[%clk 0:00:01.6]} 40... Bxg4 {[%clk 0:00:15.2]} 0-1

[Event "Late-Titled-Tuesday-Blitz-April-23-2024"]
[Site "Chess.com"]
[Date "2024.04.23"]
[Round "2"]
[White "katharinareinecke"]
[Black "DominguezOnYoutube"]
[Result "0-1"]
[WhiteElo "2055"]
[BlackElo "2957"]
[TimeControl "180+1"]
[EndTime "14:18:34 PDT"]
[Termination "DominguezOnYoutube won on time"]

1. e4 {[%clk 0:02:59.2]} 1... c5 {[%clk 0:02:59.2]} 2. Nf3 {[%clk 0:02:51.7]}
2... d6 {[%clk 0:02:59.2]} 3. Bb5+ {[%clk 0:02:45.1]} 3... Nd7 {[%clk
0:02:58.9]} 4. O-O {[%clk 0:02:37.5]} 4... a6 {[%clk 0:02:57.9]} 5. Bd3 {[%clk
0:02:31.8]} 5... Ngf6 {[%clk 0:02:58.4]} 6. c3 {[%clk 0:02:29]} 6... b5 {[%clk
0:02:57.5]} 7. Bc2 {[%clk 0:02:26.1]} 7... Bb7 {[%clk 0:02:57.4]} 8. Re1 {[%clk
0:02:25.2]} 8... c4 {[%clk 0:02:50.9]} 9. b3 {[%clk 0:02:16.5]} 9... e6 {[%clk
0:02:48.2]} 10. d3 {[%clk 0:02:01.1]} 10... cxd3 {[%clk 0:02:47]} 11. Qxd3
{[%clk 0:01:58.6]} 11... Be7 {[%clk 0:02:44.8]} 12. Bb2 {[%clk 0:01:53.1]} 12...
O-O {[%clk 0:02:40.5]} 13. Qe2 {[%clk 0:01:48.3]} 13... Rc8 {[%clk 0:02:38.5]}
14. Nbd2 {[%clk 0:01:46.4]} 14... Qc7 {[%clk 0:02:35]} 15. Rac1 {[%clk
0:01:34.1]} 15... Rfe8 {[%clk 0:02:32.9]} 16. c4 {[%clk 0:01:33]} 16... b4
{[%clk 0:02:24.9]} 17. Nf1 {[%clk 0:01:28]} 17... e5 {[%clk 0:02:15.8]} 18. h3
{[%clk 0:01:22.5]} 18... Qb8 {[%clk 0:02:11.5]} 19. N3h2 {[%clk 0:01:21.9]}
19... Bd8 {[%clk 0:02:10.2]} 20. Kh1 {[%clk 0:01:20.4]} 20... Bb6 {[%clk
0:02:09.2]} 21. f3 {[%clk 0:01:19.6]} 21... Nc5 {[%clk 0:02:02.6]} 22. Ne3
{[%clk 0:01:17.9]} 22... Ne6 {[%clk 0:02:02.3]} 23. Nd5 {[%clk 0:01:15.8]} 23...
Bxd5 {[%clk 0:01:52.8]} 24. exd5 {[%clk 0:01:10.7]} 24... Nh5 {[%clk 0:01:31.9]}
25. Nf1 {[%clk 0:01:00.2]} 25... Nd4 {[%clk 0:01:29.5]} 26. Bxd4 {[%clk
0:00:57]} 26... Bxd4 {[%clk 0:01:29.1]} 27. Rcd1 {[%clk 0:00:55.5]} 27... g6
{[%clk 0:01:28]} 28. Kh2 {[%clk 0:00:49.5]} 28... Qb6 {[%clk 0:01:26.8]} 29. Ne3
{[%clk 0:00:41.9]} 29... Qd8 {[%clk 0:01:19.7]} 30. Qf2 {[%clk 0:00:24.9]} 30...
f5 {[%clk 0:01:07.1]} 31. g4 {[%clk 0:00:20.6]} 31... fxg4 {[%clk 0:00:50.9]}
32. hxg4 {[%clk 0:00:19]} 32... Nf4 {[%clk 0:00:51.1]} 33. Rxd4 {[%clk
0:00:16.7]} 33... exd4 {[%clk 0:00:50.4]} 34. Ng2 {[%clk 0:00:15.5]} 34... Qf6
{[%clk 0:00:41.9]} 35. Kg3 {[%clk 0:00:13.1]} 35... Nxg2 {[%clk 0:00:32.1]} 36.
Kxg2 {[%clk 0:00:13]} 36... Re5 {[%clk 0:00:30.5]} 37. Rf1 {[%clk 0:00:06.7]}
37... Rce8 {[%clk 0:00:28.6]} 38. Qg3 {[%clk 0:00:06.5]} 38... Re2+ {[%clk
0:00:28.2]} 39. Rf2 {[%clk 0:00:06.8]} 39... Rxf2+ {[%clk 0:00:28.3]} 40. Qxf2
{[%clk 0:00:06.9]} 40... Re3 {[%clk 0:00:25.8]} 41. Be4 {[%clk 0:00:06.9]} 41...
Qf4 {[%clk 0:00:25]} 42. Kg1 {[%clk 0:00:04.2]} 42... Rc3 {[%clk 0:00:13.2]} 43.
Kg2 {[%clk 0:00:01.4]} 43... d3 {[%clk 0:00:11.5]} 0-1

[Event "Late-Titled-Tuesday-Blitz-April-23-2024"]
[Site "Chess.com"]
[Date "2024.04.23"]
[Round "2"]
[White "2Coaches1Profile"]
[Black "Cayse"]
[Result "0-1"]
[WhiteElo "2559"]
[BlackElo "2802"]
[TimeControl "180+1"]
[EndTime "14:18:36 PDT"]
[Termination "Cayse won by resignation"]

1. d4 {[%clk 0:03:00.9]} 1... Nf6 {[%clk 0:02:57.5]} 2. Bg5 {[%clk 0:02:59.1]}
2... d5 {[%clk 0:02:52.9]} 3. Bxf6 {[%clk 0:02:56.7]} 3... gxf6 {[%clk
0:02:50.9]} 4. c4 {[%clk 0:02:56.5]} 4... dxc4 {[%clk 0:02:47.7]} 5. e3 {[%clk
0:02:56]} 5... c5 {[%clk 0:02:47.9]} 6. Bxc4 {[%clk 0:02:52.7]} 6... cxd4 {[%clk
0:02:30.7]} 7. Nc3 {[%clk 0:02:42.7]} 7... Nc6 {[%clk 0:02:20.4]} 8. Qh5 {[%clk
0:02:34.7]} 8... e6 {[%clk 0:02:05.6]} 9. O-O-O {[%clk 0:02:33.2]} 9... Qa5
{[%clk 0:01:29.9]} 10. Qxa5 {[%clk 0:02:24.4]} 10... Nxa5 {[%clk 0:01:30.8]} 11.
Bb5+ {[%clk 0:02:23.1]} 11... Ke7 {[%clk 0:01:31.4]} 12. exd4 {[%clk 0:02:14.6]}
12... a6 {[%clk 0:01:25.5]} 13. Be2 {[%clk 0:02:07.6]} 13... b5 {[%clk
0:01:25.5]} 14. Bf3 {[%clk 0:02:03.4]} 14... Rb8 {[%clk 0:01:06]} 15. d5 {[%clk
0:01:57.8]} 15... Bh6+ {[%clk 0:01:05.6]} 16. Kb1 {[%clk 0:01:55.8]} 16... Rd8
{[%clk 0:01:06.2]} 17. Nge2 {[%clk 0:01:36.8]} 17... Nc4 {[%clk 0:00:50.6]} 18.
Nd4 {[%clk 0:01:19.4]} 18... Bb7 {[%clk 0:00:40.4]} 19. Rhe1 {[%clk 0:01:07]}
19... Ne5 {[%clk 0:00:26.7]} 20. Be4 {[%clk 0:00:32.1]} 20... b4 {[%clk
0:00:25]} 21. dxe6 {[%clk 0:00:24.5]} 21... bxc3 {[%clk 0:00:23]} 22. Nf5+
{[%clk 0:00:23.9]} 22... Kxe6 {[%clk 0:00:20.7]} 23. Rxd8 {[%clk 0:00:18.2]}
23... Bxe4+ {[%clk 0:00:20.4]} 24. Rxe4 {[%clk 0:00:17.6]} 24... Rxb2+ {[%clk
0:00:19.9]} 25. Ka1 {[%clk 0:00:18]} 25... Kxf5 {[%clk 0:00:20.5]} 26. Re1
{[%clk 0:00:16.8]} 26... Bd2 {[%clk 0:00:19.5]} 27. Rb1 {[%clk 0:00:14.9]} 27...
Nc4 {[%clk 0:00:18.3]} 28. Rb8 {[%clk 0:00:12.4]} 28... Ke4 {[%clk 0:00:15.3]}
29. R1xb2 {[%clk 0:00:10.4]} 29... cxb2+ {[%clk 0:00:15.3]} 30. Kb1 {[%clk
0:00:10.9]} 30... Bc3 {[%clk 0:00:15.9]} 31. Kc2 {[%clk 0:00:10.3]} 31... Na3+
{[%clk 0:00:13.5]} 32. Kxc3 {[%clk 0:00:10.3]} 32... b1=Q {[%clk 0:00:13.9]} 33.
Rxb1 {[%clk 0:00:06.2]} 33... Nxb1+ {[%clk 0:00:14.8]} 34. Kb4 {[%clk
0:00:05.7]} 34... Kd5 {[%clk 0:00:14.9]} 35. Ka5 {[%clk 0:00:05.9]} 35... Nc3
{[%clk 0:00:14.4]} 36. a3 {[%clk 0:00:04.5]} 36... Nb1 {[%clk 0:00:14.7]} 37. a4
{[%clk 0:00:04.2]} 37... Nc3 {[%clk 0:00:15.4]} 38. Kb4 {[%clk 0:00:04.6]} 38...
Kd4 {[%clk 0:00:14.9]} 39. a5 {[%clk 0:00:05.1]} 39... Nd5+ {[%clk 0:00:14.7]}
40. Kb3 {[%clk 0:00:05.1]} 40... Kc5 {[%clk 0:00:15.3]} 41. Kc2 {[%clk
0:00:05.1]} 41... Ne7 {[%clk 0:00:16.2]} 42. Kd3 {[%clk 0:00:05.6]} 42... Nc6
{[%clk 0:00:17.1]} 43. Ke4 {[%clk 0:00:06.2]} 43... Nxa5 {[%clk 0:00:18]} 44.
Kf5 {[%clk 0:00:06.7]} 44... Nc4 {[%clk 0:00:18.7]} 45. Kxf6 {[%clk 0:00:07.6]}
45... a5 {[%clk 0:00:19.4]} 46. Kxf7 {[%clk 0:00:08.2]} 46... a4 {[%clk
0:00:20.3]} 47. f4 {[%clk 0:00:08.7]} 47... a3 {[%clk 0:00:20.9]} 48. f5 {[%clk
0:00:09.6]} 48... a2 {[%clk 0:00:21.4]} 49. f6 {[%clk 0:00:10.5]} 49... a1=Q
{[%clk 0:00:21.6]} 50. Kg7 {[%clk 0:00:11.4]} 50... Nd6 {[%clk 0:00:20.8]} 51.
Kxh7 {[%clk 0:00:11]} 51... Qxf6 {[%clk 0:00:20.3]} 52. g4 {[%clk 0:00:11.9]}
52... Qg5 {[%clk 0:00:20.3]} 0-1

[Event "Late-Titled-Tuesday-Blitz-April-23-2024"]
[Site "Chess.com"]
[Date "2024.04.23"]
[Round "2"]
[White "JaackCamel"]
[Black "DeArron_Fox"]
[Result "0-1"]
[WhiteElo "2213"]
[BlackElo "2492"]
[TimeControl "180+1"]
[EndTime "14:18:37 PDT"]
[Termination "DeArron_Fox won on time"]

1. d4 {[%clk 0:03:00.9]} 1... d5 {[%clk 0:02:52.2]} 2. c4 {[%clk 0:03:00.1]}
2... e6 {[%clk 0:02:52.5]} 3. Nc3 {[%clk 0:02:59.2]} 3... Nf6 {[%clk 0:02:52.9]}
4. cxd5 {[%clk 0:02:58.5]} 4... exd5 {[%clk 0:02:53.8]} 5. Bg5 {[%clk
0:02:57.9]} 5... c6 {[%clk 0:02:53.9]} 6. e3 {[%clk 0:02:57.7]} 6... Be7 {[%clk
0:02:54.6]} 7. Bd3 {[%clk 0:02:57.1]} 7... Nbd7 {[%clk 0:02:54]} 8. Qc2 {[%clk
0:02:56.8]} 8... Nh5 {[%clk 0:02:54.6]} 9. Bxe7 {[%clk 0:02:48.5]} 9... Qxe7
{[%clk 0:02:55.5]} 10. O-O-O {[%clk 0:02:38]} 10... Nb6 {[%clk 0:02:47.4]} 11.
h3 {[%clk 0:02:32.1]} 11... Be6 {[%clk 0:02:43.3]} 12. Nf3 {[%clk 0:02:25.4]}
12... O-O-O {[%clk 0:02:40.5]} 13. Kb1 {[%clk 0:02:25.2]} 13... g6 {[%clk
0:02:39.3]} 14. g4 {[%clk 0:02:20.1]} 14... Ng7 {[%clk 0:02:39.1]} 15. Rc1
{[%clk 0:02:18.2]} 15... Kb8 {[%clk 0:02:34.9]} 16. Na4 {[%clk 0:02:11.3]} 16...
Nxa4 {[%clk 0:02:17.1]} 17. Qxa4 {[%clk 0:02:10.4]} 17... Ne8 {[%clk 0:02:17.3]}
18. Rc3 {[%clk 0:01:48.1]} 18... Nc7 {[%clk 0:01:58.7]} 19. Rhc1 {[%clk
0:01:46.4]} 19... f6 {[%clk 0:01:54.2]} 20. Ra3 {[%clk 0:01:36.5]} 20... a6
{[%clk 0:01:53.5]} 21. Rb3 {[%clk 0:01:20.7]} 21... Nb5 {[%clk 0:01:52.9]} 22.
Qa5 {[%clk 0:01:12.6]} 22... Qc7 {[%clk 0:01:46.3]} 23. Qb4 {[%clk 0:01:12.6]}
23... Qd6 {[%clk 0:01:33.3]} 24. Qa5 {[%clk 0:01:08.8]} 24... Qc7 {[%clk
0:01:14.8]} 25. Qd2 {[%clk 0:01:07.9]} 25... h5 {[%clk 0:00:52]} 26. a4 {[%clk
0:00:39.1]} 26... Nd6 {[%clk 0:00:51.3]} 27. Bxa6 {[%clk 0:00:27.8]} 27... hxg4
{[%clk 0:00:50.2]} 28. hxg4 {[%clk 0:00:26.2]} 28... Bxg4 {[%clk 0:00:49.1]} 29.
Ne1 {[%clk 0:00:21.9]} 29... Bf5+ {[%clk 0:00:28.9]} 30. Ka2 {[%clk 0:00:18]}
30... Ka7 {[%clk 0:00:23.4]} 31. Bd3 {[%clk 0:00:16.9]} 31... Nc4 {[%clk
0:00:18.1]} 32. Bxc4 {[%clk 0:00:14.7]} 32... dxc4 {[%clk 0:00:19]} 33. Rxc4
{[%clk 0:00:14.6]} 33... Be6 {[%clk 0:00:19.3]} 34. Qb4 {[%clk 0:00:12.2]} 34...
Bxc4 {[%clk 0:00:17]} 35. Qxc4 {[%clk 0:00:12.3]} 35... Qa5 {[%clk 0:00:03.1]}
36. Nd3 {[%clk 0:00:11.1]} 36... Rd7 {[%clk 0:00:03]} 37. Nc5 {[%clk 0:00:10.2]}
37... Rc7 {[%clk 0:00:03.2]} 38. Ne6 {[%clk 0:00:02.1]} 38... Re7 {[%clk
0:00:03.1]} 39. Nc5 {[%clk 0:00:01.9]} 39... b6 {[%clk 0:00:03.6]} 40. Nd3
{[%clk 0:00:01.5]} 40... Kb7 {[%clk 0:00:04.2]} 41. Nb4 {[%clk 0:00:01.5]} 41...
Rc8 {[%clk 0:00:04.1]} 0-1

[Event "Late-Titled-Tuesday-Blitz-April-23-2024"]
[Site "Chess.com"]
[Date "2024.04.23"]
[Round "2"]
[White "IndianSchoolOfSuffering"]
[Black "ArtemDyachuk"]
[Result "0-1"]
[WhiteElo "2414"]
[BlackElo "2738"]
[TimeControl "180+1"]
[EndTime "14:18:40 PDT"]
[Termination "ArtemDyachuk won by resignation"]

1. Nf3 {[%clk 0:03:00.9]} 1... Nf6 {[%clk 0:02:59.7]} 2. c4 {[%clk 0:03:00]}
2... e6 {[%clk 0:02:59.6]} 3. d4 {[%clk 0:02:55.5]} 3... d5 {[%clk 0:03:00.5]}
4. g3 {[%clk 0:02:53.9]} 4... dxc4 {[%clk 0:03:00.8]} 5. Bg2 {[%clk 0:02:53.3]}
5... a6 {[%clk 0:03:01.5]} 6. O-O {[%clk 0:02:52.1]} 6... Nc6 {[%clk 0:03:02.1]}
7. e3 {[%clk 0:02:48.2]} 7... Bd7 {[%clk 0:02:56.4]} 8. a4 {[%clk 0:02:36.2]}
8... Rb8 {[%clk 0:02:55.9]} 9. a5 {[%clk 0:02:31.1]} 9... Bb4 {[%clk 0:02:53.7]}
10. Bd2 {[%clk 0:02:30.2]} 10... Qe7 {[%clk 0:02:43.1]} 11. Qc2 {[%clk
0:02:27.3]} 11... b5 {[%clk 0:02:41.1]} 12. axb6 {[%clk 0:02:26]} 12... Rxb6
{[%clk 0:02:40.8]} 13. Nc3 {[%clk 0:02:17.6]} 13... O-O {[%clk 0:02:38.3]} 14.
Na4 {[%clk 0:02:05]} 14... Rb5 {[%clk 0:02:38.2]} 15. Qxc4 {[%clk 0:02:01]}
15... Na5 {[%clk 0:02:22.5]} 16. Qd3 {[%clk 0:01:40.6]} 16... Nb3 {[%clk
0:02:16.4]} 17. Qxb3 {[%clk 0:01:27.5]} 17... Bxd2 {[%clk 0:02:16.5]} 18. Qc2
{[%clk 0:01:26.5]} 18... Bb4 {[%clk 0:02:02.9]} 19. Ne5 {[%clk 0:01:25.8]} 19...
Bd6 {[%clk 0:01:53.9]} 20. Nd3 {[%clk 0:01:11]} 20... Rfb8 {[%clk 0:01:49.4]}
21. Ra2 {[%clk 0:01:01.3]} 21... h5 {[%clk 0:01:01.4]} 22. Rfa1 {[%clk
0:00:58.4]} 22... h4 {[%clk 0:01:01.7]} 23. Nc3 {[%clk 0:00:58.2]} 23... Rh5
{[%clk 0:01:00.6]} 24. Rxa6 {[%clk 0:00:55.5]} 24... Ng4 {[%clk 0:00:53.9]} 25.
Ra8 {[%clk 0:00:53.2]} 25... Re8 {[%clk 0:00:33.9]} 26. Nf4 {[%clk 0:00:46.1]}
26... hxg3 {[%clk 0:00:26.9]} 27. hxg3 {[%clk 0:00:31.8]} 27... Rh6 {[%clk
0:00:26.7]} 28. Rxe8+ {[%clk 0:00:30.5]} 28... Bxe8 {[%clk 0:00:27.6]} 29. Ra8
{[%clk 0:00:26.6]} 29... g5 {[%clk 0:00:22.9]} 30. Bc6 {[%clk 0:00:25.5]} 30...
Nf6 {[%clk 0:00:23]} 31. Ne4 {[%clk 0:00:22.6]} 31... gxf4 {[%clk 0:00:17.5]}
32. Nxf6+ {[%clk 0:00:22.1]} 32... Qxf6 {[%clk 0:00:18.4]} 33. Rxe8+ {[%clk
0:00:22]} 33... Kg7 {[%clk 0:00:18.9]} 34. exf4 {[%clk 0:00:20.6]} 34... Qxd4
{[%clk 0:00:13.6]} 35. Bf3 {[%clk 0:00:20.7]} 35... Rg6 {[%clk 0:00:11.4]} 36.
Kg2 {[%clk 0:00:20.5]} 36... Bc5 {[%clk 0:00:07.7]} 37. Rc8 {[%clk 0:00:18.6]}
37... Bb6 {[%clk 0:00:07.4]} 38. Ra8 {[%clk 0:00:18.2]} 38... Rh6 {[%clk
0:00:07.3]} 39. Qe2 {[%clk 0:00:17.2]} 39... Qf6 {[%clk 0:00:06.2]} 40. b3
{[%clk 0:00:17.2]} 40... Qf5 {[%clk 0:00:05.6]} 41. Ra4 {[%clk 0:00:17.2]} 41...
Qh3+ {[%clk 0:00:05.2]} 42. Kg1 {[%clk 0:00:16.7]} 42... Qxg3+ {[%clk
0:00:04.8]} 43. Kf1 {[%clk 0:00:16.2]} 43... Qh3+ {[%clk 0:00:04.3]} 44. Ke1
{[%clk 0:00:16.4]} 44... Qf5 {[%clk 0:00:03.9]} 45. Be4 {[%clk 0:00:15.5]} 45...
Qxf4 {[%clk 0:00:02.9]} 46. Bd3 {[%clk 0:00:15.6]} 46... Qc1+ {[%clk 0:00:02.8]}
47. Qd1 {[%clk 0:00:15.6]} 47... Rh1+ {[%clk 0:00:03.5]} 0-1